[Event "Chinese League Div-A Rapid 2022"]
[Site "Fuling,Chongqing"]
[Date "2022.09.07"]
[Round "2.19"]
[White "Liu, Manli"]
[Black "Li, Ruofan"]
[Result "0-1"]
[ECO "C79"]
[WhiteElo "2195"]
[BlackElo "2302"]
[Annotator "RC"]
[PlyCount "112"]
[EventDate "2022.09.07"]
[EventType "team-tourn"]
[EventCountry "CHN"]
[SourceTitle "playchess.com"]
[Source "ChessBase"]
[SourceQuality "1"]
[TimeControl "1500+10"]

1. e4 {[%emt 0:00:02]} e5 {[%emt 0:00:03]} 2. Nf3 {[%emt 0:00:06]} Nc6 {[%emt 0:00:01]} 3. Bb5 {[%emt 0:00:06]} a6 {[%emt 0:00:02]} 4. Ba4 {[%emt 0:00:08]} d6 {[%emt 0:00:02]} 5. c3 {[%emt 0:02:59]} Bd7 {[%emt 0:00:01]} 6. d4 {[%emt 0:00:58]} Nf6 {[%emt 0:00:11]} 7. O-O {[%emt 0:02:35]} g6 {[%emt 0:00:11]} 8. Nbd2 {[%emt 0:00:47]} b5 {[%emt 0:01:35]} 9. Bb3 {[%emt 0:00:13]} Bg7 {[%emt 0:00:01]} 10. dxe5 {[%emt 0:00:48]} Nxe5 {[%emt 0:03:47]} 11. Bc2 {[%emt 0:02:40]} O-O {[%emt 0:00:16]} 12. Nxe5 {[%emt 0:00:26]} dxe5 {[%emt 0:00:01]} 13. Nb3 {[%emt 0:00:24]} Qe7 {[%emt 0:04:21]} 14. Be3 {[%emt 0:00:55]} Rfd8 {[%emt 0:00:02]} 15. Qe1 {[%emt 0:02:10]} a5 {[%emt 0:04:12]} 16. f3 {[%emt 0:02:40]} Be6 {[%emt 0:00:32]} 17. a4 {[%emt 0:01:00]} Nd7 {[%emt 0:03:41]} 18. Qf2 {[%emt 0:00:44]} Bf8 {[%emt 0:00:35]} 19. axb5 {[%emt 0:00:30]} Bc4 {[%emt 0:00:15]} 20. Rfd1 {[%emt 0:01:37]} a4 {[%emt 0:00:01]} 21. Nd2 {[%emt 0:01:00]} Bxb5 {[%emt 0:00:01]} 22. c4 {[%emt 0:00:19]} Bc6 {[%emt 0:00:23]} 23. b3 {[%emt 0:01:41]} a3 {[%emt 0:00:54]} 24. Nb1 {[%emt 0:00:25]} a2 {[%emt 0:01:07]} 25. Nc3 {[%emt 0:00:11]} Qb4 {[%emt 0:00:57]} 26. Nxa2 {[%emt 0:00:21]} Qa3 {[%emt 0:00:01]} 27. Nc3 {[%emt 0:01:02]} Qxa1 {[%emt 0:00:03]} 28. Rxa1 {[%emt 0:00:02]} Rxa1+ {[%emt 0:00:01]} 29. Nb1 {[%emt 0:00:07]} Nc5 {[%emt 0:00:20]} 30. g3 {[%emt 0:00:54]} Nxb3 {[%emt 0:01:59]} 31. Kg2 {[%emt 0:00:04]} Ra2 {[%emt 0:00:47]} 32. Nc3 {[%emt 0:00:07]} Rb2 {[%emt 0:00:02]} 33. Bg5 {[%emt 0:01:32]} f6 {[%emt 0:00:42]} 34. Be3 {[%emt 0:00:47]} Na1 {[%emt 0:01:41]} 35. Kh3 {[%emt 0:00:07]} Rxc2 {[%emt 0:01:14]} 36. Qe1 {[%emt 0:00:00]} Bb4 {[%emt 0:00:26]} 37. Qxa1 {[%emt 0:00:07]} Bd7+ {[%emt 0:00:15]} 38. g4 {[%emt 0:00:12]} Rxc3 {[%emt 0:00:06]} 39. Bc5 {[%emt 0:00:35]} Rxf3+ {[%emt 0:00:04]} 40. Kg2 {[%emt 0:00:02]} Ra3 {[%emt 0:00:06]} 41. Qd1 {[%emt 0:00:03]} Ra2+ {[%emt 0:00:07]} 42. Kg3 {[%emt 0:00:03]} Bxc5 {[%emt 0:00:12]} 43. Qd5+ {[%emt 0:00:01]} Kg7 {[%emt 0:00:01]} 44. Qxc5 {[%emt 0:00:02]} Re8 {[%emt 0:00:21]} 45. Qxc7 {[%emt 0:00:02]} Re7 {[%emt 0:00:01]} 46. Qd6 {[%emt 0:00:14]} Rf7 {[%emt 0:00:01]} 47. h3 {[%emt 0:00:05]} Ra8 {[%emt 0:00:09]} 48. g5 {[%emt 0:00:27]} fxg5 {[%emt 0:00:41]} 49. Qxe5+ {[%emt 0:00:03]} Kh6 {[%emt 0:00:01]} 50. Qd6 {[%emt 0:00:42]} Raf8 {[%emt 0:00:07]} 51. h4 {[%emt 0:00:21]} Rf3+ {[%emt 0:00:03]} 52. Kg2 {[%emt 0:00:09]} Bh3+ {[%emt 0:00:09]} 53. Kg1 {[%emt 0:00:08]} gxh4 {[%emt 0:00:24]} 54. c5 {[%emt 0:00:14]} Rg3+ {[%emt 0:00:08]} 55. Kh2 {[%emt 0:00:03]} Rf2+ {[%emt 0:00:04]} 56. Kh1 {[%emt 0:00:05]} Bg2+ {[%emt 0:00:11]} 0-1

[Event "Chinese League Div-A Rapid 2022"]
[Site "Fuling,Chongqing"]
[Date "2022.09.07"]
[Round "2.20"]
[White "Gu, Xiaobing"]
[Black "Wang, Yu A."]
[Result "0-1"]
[ECO "C26"]
[WhiteElo "2219"]
[BlackElo "2271"]
[Annotator "RC"]
[PlyCount "112"]
[EventDate "2022.09.07"]
[EventType "team-tourn"]
[EventCountry "CHN"]
[SourceTitle "playchess.com"]
[Source "ChessBase"]
[SourceQuality "1"]
[TimeControl "1500+10"]

1. e4 {[%emt 0:00:02]} e5 {[%emt 0:00:00]} 2. Nc3 {[%emt 0:00:03]} Nc6 {[%emt 0:00:08]} 3. g3 {[%emt 0:00:05]} Nf6 {[%emt 0:00:15]} 4. Bg2 {[%emt 0:00:03]} Be7 {[%emt 0:00:09]} 5. Nge2 {[%emt 0:00:08]} d6 {[%emt 0:00:23]} 6. O-O {[%emt 0:00:10]} h5 {[%emt 0:04:43]} 7. d4 {[%emt 0:02:49]} h4 {[%emt 0:00:42]} 8. dxe5 {[%emt 0:02:15]} dxe5 {[%emt 0:00:24]} 9. Bg5 {[%emt 0:01:14]} hxg3 {[%emt 0:02:40]} 10. Qxd8+ {[%emt 0:00:23]} Nxd8 {[%emt 0:01:09]} 11. hxg3 {[%emt 0:00:15]} c6 {[%emt 0:00:19]} 12. Rad1 {[%emt 0:01:18]} Ne6 {[%emt 0:00:43]} 13. Bc1 {[%emt 0:02:24]} Bd7 {[%emt 0:00:22]} 14. a3 {[%emt 0:01:15]} O-O-O {[%emt 0:02:38]} 15. b4 {[%emt 0:00:13]} c5 {[%emt 0:02:56]} 16. Nd5 {[%emt 0:00:57]} Nxd5 {[%emt 0:00:02]} 17. exd5 {[%emt 0:00:32]} Nd4 {[%emt 0:00:01]} 18. Nxd4 {[%emt 0:00:28]} cxd4 {[%emt 0:00:01]} 19. c3 {[%emt 0:01:06]} Ba4 {[%emt 0:03:07]} 20. cxd4 {[%emt 0:04:55]} Bxd1 {[%emt 0:00:03]} 21. Rxd1 {[%emt 0:00:01]} exd4 {[%emt 0:00:09]} 22. Rxd4 {[%emt 0:00:26]} Bd6 {[%emt 0:00:14]} 23. Be4 {[%emt 0:00:32]} Kb8 {[%emt 0:00:16]} 24. Bf5 {[%emt 0:00:46]} g6 {[%emt 0:00:15]} 25. Bg4 {[%emt 0:00:31]} f5 {[%emt 0:00:27]} 26. Bf3 {[%emt 0:00:13]} Rc8 {[%emt 0:01:34]} 27. Bd2 {[%emt 0:00:01]} Rc2 {[%emt 0:02:22]} 28. Kg2 {[%emt 0:00:39]} Rhc8 {[%emt 0:01:02]} 29. Rd3 {[%emt 0:01:23]} Ra2 {[%emt 0:00:13]} 30. Bd1 {[%emt 0:00:11]} a5 {[%emt 0:00:15]} 31. bxa5 {[%emt 0:01:29]} Rxa3 {[%emt 0:00:14]} 32. Bb3 {[%emt 0:01:41]} Re8 {[%emt 0:01:19]} 33. Kf3 {[%emt 0:00:09]} Re4 {[%emt 0:00:39]} 34. Kg2 {[%emt 0:01:55]} Re2 {[%emt 0:00:16]} 35. Bc1 {[%emt 0:00:13]} Rxa5 {[%emt 0:00:15]} 36. Be3 {[%emt 0:00:10]} Ra3 {[%emt 0:00:21]} 37. Bc1 {[%emt 0:00:00]} Ra1 {[%emt 0:00:17]} 38. Be3 {[%emt 0:00:06]} Ra3 {[%emt 0:00:20]} 39. Bc1 {[%emt 0:00:01]} Ra5 {[%emt 0:00:07]} 40. Be3 {[%emt 0:00:01]} Rb2 {[%emt 0:00:10]} 41. Bd4 {[%emt 0:00:13]} Rxb3 {[%emt 0:00:10]} 42. Rxb3 {[%emt 0:00:02]} Rxd5 {[%emt 0:00:01]} 43. Bb6 {[%emt 0:00:09]} Bc7 {[%emt 0:00:13]} 44. Kf3 {[%emt 0:00:17]} g5 {[%emt 0:00:14]} 45. Ke3 {[%emt 0:00:40]} Bxb6+ {[%emt 0:00:15]} 46. Rxb6 {[%emt 0:00:01]} Kc7 {[%emt 0:00:01]} 47. Rf6 {[%emt 0:00:22]} b5 {[%emt 0:00:10]} 48. f4 {[%emt 0:00:12]} gxf4+ {[%emt 0:00:10]} 49. Kxf4 {[%emt 0:00:01]} b4 {[%emt 0:00:01]} 50. Rf7+ {[%emt 0:00:01]} Kc6 {[%emt 0:00:04]} 51. Rf6+ {[%emt 0:00:03]} Kc5 {[%emt 0:00:03]} 52. Rf8 {[%emt 0:00:23]} b3 {[%emt 0:00:05]} 53. Rb8 {[%emt 0:00:09]} Kc4 {[%emt 0:00:01]} 54. Ke3 {[%emt 0:00:04]} Kc3 {[%emt 0:00:02]} 55. Rc8+ {[%emt 0:00:12]} Kb2 {[%emt 0:00:03]} 56. Rh8 {[%emt 0:00:08]} Kb1 {[%emt 0:00:09]} 0-1

[Event "Chinese League Div-A Rapid 2022"]
[Site "Fuling,Chongqing"]
[Date "2022.09.07"]
[Round "2.21"]
[White "Xu, Yinglun"]
[Black "Xu, Xiangyu"]
[Result "1/2-1/2"]
[ECO "D80"]
[WhiteElo "2549"]
[BlackElo "2571"]
[Annotator "TA"]
[PlyCount "42"]
[EventDate "2022.09.07"]
[EventType "team-tourn"]
[EventCountry "CHN"]
[SourceTitle "playchess.com"]
[Source "ChessBase"]
[SourceQuality "1"]
[TimeControl "1500+10"]

{[%evp 11,42,17,23,10,10,8,13,12,17,4,8,12,9,9,21,0,0,0,0,0,0,0,0,0,0,0,0,-21,0,0,0,-2,-2]} 1. d4 {[%emt 0:00:13]} Nf6 {[%emt 0:00:02]} 2. c4 {[%emt 0:00:05][%cal Bc2c4,Bc4d5][%mdl 32]} g6 {[%emt 0:00:03]} 3. Nc3 {[%emt 0:00:26]} d5 {[%emt 0:00:03]} 4. Bg5 {[%emt 0:00:32]} Bg7 {[%emt 0:00:12]} 5. Bxf6 {[%emt 0:00:29]} Bxf6 {[%emt 0:00:03]} 6. cxd5 {[%emt 0:00:21]} c6 {[%emt 0:00:26]} 7. Rc1 {[%emt 0:00:57] D80: Grünfeld: Unusual White 4th moves and 4 Bg5.} O-O $1 {[%emt 0:00:55] The position is equal.} 8. dxc6 {[%emt 0:01:03]} (8. e4 {with more complications.} Bg7 9. Nf3 cxd5 10. exd5 e6 11. Bc4) 8... Qxd4 {[%emt 0:01:09]} 9. Qxd4 {[%emt 0:00:54]} Bxd4 {[%emt 0:00:03]} 10. cxb7 {[%emt 0:00:05]} Bxb7 {[%emt 0:00:05]} 11. Nf3 {[%emt 0:00:34]} Bf6 {[%emt 0:04:38] A strong pair of Bishops.} 12. e3 {[%emt 0:00:36]} Nd7 {[%emt 0:00:19]} 13. Be2 {[%emt 0:00:17]} (13. Bb5 $5 {[%cal Rb5d7]} Nc5 14. O-O $11) 13... Rab8 {[%emt 0:02:14]} 14. Na4 {[%emt 0:00:33] [#]} Rfc8 $146 {[%emt 0:01:01]} ({Predecessor:} 14... Nb6 15. Nxb6 axb6 16. b3 Ra8 17. a4 Bd5 18. Bc4 Rfc8 19. Ke2 Bxc4+ 20. Rxc4 {½-½ (20) Brunello,S (2592)-Erdos,V (2624) Sibenik 2012}) 15. O-O {[%emt 0:00:19][%cal Bh1f1,Bf1c1,Bc1c7,Bc7d7][%mdl 32]} Bxb2 $1 {[%emt 0:00:49]} 16. Nxb2 {[%emt 0:00:08] [#] Hoping for Nd3.} (16. Rxc8+ {keeps more tension.} Bxc8 17. Rb1 Be5 18. Rxb8 Bxb8 19. Nd4) 16... Rxc1 {[%emt 0:00:04]} 17. Rxc1 {[%emt 0:00:05] aiming for Nd1.} Bxf3 {[%emt 0:00:04]} 18. gxf3 {[%emt 0:00:24]} Rxb2 {[%emt 0:00:03]} 19. Rc7 {[%emt 0:00:11]} Rxa2 {[%emt 0:01:07]} 20. Rxd7 {[%emt 0:00:07] [#] Black must now prevent Bb5.} Rxe2 {[%emt 0:00:03]} 21. Rxa7 {[%emt 0:00:03]} e6 {[%emt 0:00:16] An uneventful encounter.  Weighted Error Value: White=0.04 (flawless) /Black=0.02 (flawless)} 1/2-1/2

[Event "Chinese League Div-A Rapid 2022"]
[Site "Fuling,Chongqing"]
[Date "2022.09.07"]
[Round "2.22"]
[White "Xue, Haowen"]
[Black "Zhao, Yuanhe"]
[Result "1-0"]
[ECO "C02"]
[WhiteElo "2128"]
[BlackElo "2440"]
[Annotator "TA"]
[PlyCount "151"]
[EventDate "2022.09.07"]
[EventType "team-tourn"]
[EventCountry "CHN"]
[SourceTitle "playchess.com"]
[Source "ChessBase"]
[SourceQuality "1"]
[TimeControl "1500+10"]

{[%evp 18,151,47,27,24,24,28,25,25,0,38,0,1,0,113,93,121,55,147,144,176,172,132,72,152,146,136,137,141,-33,-37,-97,-106,-99,-103,-106,-68,-59,-39,-140,-84,-159,-100,-105,-102,-114,-116,-125,-107,-112,-93,-104,-100,-99,-100,-109,-106,-122,-107,-129,-126,-134,-129,-155,-131,-134,-118,-118,-86,-88,-14,-18,-8,-6,-12,-8,-8,-168,-33,-37,0,0,0,0,54,58,56,47,47,54,56,49,52,52,49,57,53,65,56,33,35,50,50,51,74,73,72,55,221,246,251,245,220,197,288,286,296,294,331,331,320,294,320,320,355,281,2253,2439,3603,3648,11241,6642,5545,5082,1074,812]} 1. e4 {[%emt 0:00:02]} e6 {[%emt 0:00:05]} 2. d4 {[%emt 0:00:12]} d5 {[%emt 0:00:02]} 3. e5 {[%emt 0:00:04]} c5 {[%emt 0:00:02]} 4. c3 {[%emt 0:00:02]} Qb6 {[%emt 0:00:02]} 5. Nf3 {[%emt 0:00:34]} Bd7 {[%emt 0:00:02]} 6. a3 {[%emt 0:00:42]} cxd4 {[%emt 0:00:22]} 7. cxd4 {[%emt 0:00:04]} Bb5 {[%emt 0:00:44]} 8. Bxb5+ {[%emt 0:01:00]} Qxb5 {[%emt 0:00:02]} 9. Nc3 {[%emt 0:00:38]} Qa6 {[%emt 0:00:02]} 10. Ne2 {[%emt 0:00:43]} Ne7 {[%emt 0:00:49] C02: French: Advance Variation.} 11. O-O {[%emt 0:00:10]} Nec6 {[%emt 0:00:02]} 12. Be3 {[%emt 0:02:38]} Nd7 {[%emt 0:00:08] [#] White has an edge.} 13. h4 $146 {[%emt 0:01:44]} ({Predecessor:} 13. b4 Nb6 14. Nc3 Qc4 15. Rc1 Nd8 16. Na4 Qb5 17. Nxb6 Qxb6 18. Qb3 h6 19. Rc2 {½-½ (66) Solodovnichenko,Y (2537)-Laznicka,V (2602) Playchess.com INT 2006}) 13... Rc8 {[%emt 0:00:14]} 14. Rc1 {[%emt 0:00:17]} Nb6 {[%emt 0:01:55]} 15. Nf4 {[%emt 0:04:54]} g6 {[%emt 0:01:45]} (15... Be7 $11 {remains equal.}) 16. Ng5 $1 $16 {[%emt 0:02:26] Threatens to win with Qg4.} Be7 {[%emt 0:00:07] [#]} 17. Qg4 {[%emt 0:00:43]} (17. Nfxe6 $1 $16 {[%mdl 512] Hoping for Ng7+.} fxe6 18. Nxe6) 17... h5 {[%emt 0:00:04]} (17... Bxg5 $14 18. Qxg5 (18. hxg5 O-O $11) 18... Rg8) 18. Qg3 {[%emt 0:00:17][%cal Og5f7] White is much more active.} Rg8 {[%emt 0:01:08]} 19. Nh7 $1 {[%emt 0:02:56]} Kd7 {[%emt 0:00:38]} 20. Rfd1 {[%emt 0:01:36]} (20. Nf6+ $142 $1 Bxf6 21. exf6) 20... Na5 {[%emt 0:00:51]} (20... Nc4 $142) 21. Nd3 {[%emt 0:00:23]} (21. Ng5 Rg7 $14) 21... Rxc1 {[%emt 0:01:15]} 22. Bxc1 {[%emt 0:00:03] aiming for Nf6+.} Rh8 {[%emt 0:02:12]} 23. Nf6+ {[%emt 0:00:53]} ({Only move:} 23. Ng5 $1 $16 {[%cal Rg5f7]} Rf8 24. Qf3) 23... Kc8 $15 {[%emt 0:00:05]} 24. Nc5 {[%emt 0:02:50]} (24. Ne1 $15) 24... Qe2 {[%emt 0:00:58]} 25. Qd3 {[%emt 0:01:58]} Qxd3 {[%emt 0:00:03]} 26. Rxd3 {[%emt 0:00:31]} Bxf6 {[%emt 0:00:43]} 27. exf6 {[%emt 0:00:02]} Nd7 {[%emt 0:00:05]} 28. Bf4 {[%emt 0:00:43]} (28. Rc3 $15) 28... Nc4 {[%emt 0:02:28]} ({Black should play} 28... Nxc5 29. dxc5 Nc4) 29. Bc1 {[%emt 0:00:44]} (29. Na4 $142) 29... b6 {[%emt 0:01:02]} (29... Nxf6 30. Rf3 $16) (29... Nxc5 $142 30. dxc5 Kd7) 30. Na4 {[%emt 0:00:07]} Kb7 {[%emt 0:00:15]} (30... Nxf6 $6 31. Rf3 Nd7 32. Rxf7 $11) 31. Nc3 {[%emt 0:00:13]} Rc8 {[%emt 0:00:15]} (31... Nxf6 32. Rf3 $16) 32. Kf1 {[%emt 0:00:08]} Nd6 {[%emt 0:01:32]} ({Don't take} 32... Nxf6 33. Rf3 Nh7 34. Rxf7+ Rc7 35. Rf3 $14) 33. Bg5 {[%emt 0:00:03]} Nf5 {[%emt 0:01:35]} 34. f3 {[%emt 0:00:14]} Nd6 {[%emt 0:00:53]} 35. b3 {[%emt 0:00:14]} Ne8 {[%emt 0:00:08]} 36. Kf2 {[%emt 0:00:10]} Nexf6 {[%emt 0:00:21]} 37. Ke3 {[%emt 0:00:10]} a6 {[%emt 0:00:14]} 38. Kd2 {[%emt 0:00:07]} Ne8 {[%emt 0:00:17]} 39. Bf4 {[%emt 0:00:12]} Ng7 {[%emt 0:00:22]} 40. g4 {[%emt 0:00:11]} Rh8 {[%emt 0:00:05] White must now prevent ...hxg4.} 41. Bg3 {[%emt 0:00:10]} Ne8 {[%emt 0:00:21]} 42. Nd1 {[%emt 0:00:07]} Ndf6 {[%emt 0:01:06]} 43. Nf2 {[%emt 0:00:13]} hxg4 {[%emt 0:00:42]} (43... Ng8 $17) 44. fxg4 $11 {[%emt 0:00:01][%cal Bf3g4,Bg4g5,Bg5g6,Bg6g7][%mdl 32]} Ne4+ {[%emt 0:00:02]} 45. Nxe4 {[%emt 0:00:01]} dxe4 {[%emt 0:00:01][%mdl 4096] Endgame KRB-KRN} 46. Rc3 {[%emt 0:00:17]} f5 {[%emt 0:02:23]} 47. Ke3 $2 {[%emt 0:00:06] [#]} (47. g5 $11 {and White stays safe.}) 47... Rh7 {[%emt 0:00:08]} (47... Nf6 $1 $19 {[%cal Rf6d5]} 48. Rc7+ Ka8) 48. g5 $15 {[%emt 0:00:17]} Rd7 {[%emt 0:00:12]} (48... e5 $5 49. Bxe5 (49. dxe5 Nc7 $17) 49... Rxh4 $15) 49. Rc1 {[%emt 0:00:19][%cal Oh4h5]} Nd6 {[%emt 0:00:37]} 50. Rh1 {[%emt 0:00:09]} Nb5 {[%emt 0:01:39]} (50... Rd8 $11) 51. h5 {[%emt 0:00:03]} gxh5 {[%emt 0:00:14]} (51... Nxa3 $2 52. hxg6 Kc6 53. Rh7 $18) 52. Be5 {[%emt 0:00:13] Strongly threatening g6.} Nc3 {[%emt 0:00:23]} (52... Nxa3 $2 53. g6 $18) 53. g6 {[%emt 0:00:07] g7 is the strong threat.} Nd5+ {[%emt 0:00:02]} 54. Kf2 {[%emt 0:00:07]} Rd8 {[%emt 0:01:49]} 55. Rxh5 {[%emt 0:00:16]} Rg8 {[%emt 0:00:01]} 56. g7 {[%emt 0:00:04] And now Rh6 would win.} Kc6 {[%emt 0:00:43]} 57. Rh8 {[%emt 0:00:14]} Ne7 {[%emt 0:00:01]} 58. Bf6 {[%emt 0:00:11]} f4 {[%emt 0:00:14][%cal Of4f3]} 59. Bxe7 {[%emt 0:00:14]} Rxg7 $14 {[%emt 0:00:01] KRB-KR} 60. Bh4 {[%emt 0:00:11]} e3+ {[%emt 0:00:25]} 61. Kf3 {[%emt 0:00:05]} Rg1 {[%emt 0:00:04]} 62. Rc8+ {[%emt 0:00:13]} ({But not} 62. Kxf4 e2 $11) 62... Kd7 $2 {[%emt 0:00:15] [#]} ({Black should try} 62... Kd5 $14) 63. Rc2 $1 $18 {[%emt 0:00:09]} Rh1 {[%emt 0:00:11]} 64. Bg5 {[%emt 0:00:11]} Rf1+ {[%emt 0:00:03]} 65. Kg2 {[%emt 0:00:12]} Rb1 {[%emt 0:00:04]} (65... Re1 $142) 66. Bxf4 {[%emt 0:00:10]} Rxb3 {[%emt 0:00:01]} 67. Kf3 {[%emt 0:00:10]} Rxa3 {[%emt 0:00:12]} 68. Rc7+ {[%emt 0:00:04]} Kd8 {[%emt 0:00:03]} 69. Rb7 {[%emt 0:00:15]} b5 {[%emt 0:00:21]} 70. Bxe3 {[%emt 0:00:08]} Kc8 {[%emt 0:00:08]} 71. Rb6 {[%emt 0:00:12]} Kc7 $2 {[%emt 0:00:11]} (71... Kd7 72. Kf4 Ra5) 72. Rxe6 {[%emt 0:00:04] White is clearly winning.} b4 {[%emt 0:00:00]} 73. d5 {[%emt 0:00:17]} b3 {[%emt 0:00:04]} 74. Rc6+ {[%emt 0:00:01]} Kd7 {[%emt 0:00:05]} 75. Rb6 {[%emt 0:00:02]} a5 {[%emt 0:00:10]} 76. Bc5 {[%emt 0:00:04] Weighted Error Value: White=0.26 (precise) /Black=0.23 (precise)} 1-0

[Event "Chinese League Div-A Rapid 2022"]
[Site "Fuling,Chongqing"]
[Date "2022.09.07"]
[Round "2.23"]
[White "Wen, Yang"]
[Black "Li, Di"]
[Result "1/2-1/2"]
[ECO "D38"]
[WhiteElo "2588"]
[BlackElo "2575"]
[Annotator "TA"]
[PlyCount "46"]
[EventDate "2022.09.07"]
[EventType "team-tourn"]
[EventCountry "CHN"]
[SourceTitle "playchess.com"]
[Source "ChessBase"]
[SourceQuality "1"]
[TimeControl "1500+10"]

{[%evp 20,46,31,6,1,0,1,0,0,0,0,0,0,0,2,0,0,0,0,0,0,0,0,0,0,0,0,0,1]} 1. d4 {[%emt 0:00:03]} Nf6 {[%emt 0:00:05]} 2. Nf3 {[%emt 0:00:04]} d5 {[%emt 0:00:08]} 3. c4 {[%emt 0:00:07]} e6 {[%emt 0:00:04]} 4. Nc3 {[%emt 0:00:08]} Bb4 {[%emt 0:00:04]} 5. Bg5 {[%emt 0:00:32]} h6 {[%emt 0:00:14]} 6. Bxf6 {[%emt 0:00:07]} Qxf6 {[%emt 0:00:03]} 7. e3 {[%emt 0:00:04]} O-O {[%emt 0:00:11]} 8. Rc1 {[%emt 0:00:51]} dxc4 {[%emt 0:00:14]} 9. Bxc4 {[%emt 0:00:04]} c5 {[%emt 0:00:04]} 10. O-O {[%emt 0:01:33]} cxd4 {[%emt 0:00:22]} 11. Nxd4 {[%emt 0:01:06]} Bd7 {[%emt 0:00:26] The position is equal. D38: Queen's Gambit Declined: Ragozin Defence (4 Nf3 Bb4).} 12. Qb3 {[%emt 0:01:32]} Nc6 {[%emt 0:00:06]} 13. Nxc6 {[%emt 0:00:05]} Bxc3 {[%emt 0:00:07]} 14. Qxb7 {[%emt 0:00:30]} Bxc6 {[%emt 0:00:10]} 15. Qxc6 {[%emt 0:00:03]} Bxb2 {[%emt 0:00:03] [#] White must now prevent ...Rac8.} 16. Rc2 {[%emt 0:00:03]} Rfc8 {[%emt 0:01:37]} 17. Qe4 {[%emt 0:00:48]} Qe5 {[%emt 0:01:16] [#]} 18. Qxe5 $146 {[%emt 0:00:08]} ({Predecessor:} 18. Bd3 Qxe4 19. Bxe4 Rxc2 20. Bxc2 Rc8 21. Bb3 Kf8 22. Rd1 Rc1 23. Rxc1 Bxc1 24. Kf1 {½-½ (30) Guo,Q (2439)-Tan,Z (2483) Manila 2013}) 18... Bxe5 {[%emt 0:00:02]} 19. g3 {[%emt 0:00:03]} Rc5 {[%emt 0:00:08]} 20. Rfc1 {[%emt 0:00:04]} Rac8 {[%emt 0:00:06]} 21. Bb3 {[%emt 0:00:03]} Rxc2 {[%emt 0:00:04]} 22. Rxc2 {[%emt 0:00:03]} Rxc2 {[%emt 0:00:02]} 23. Bxc2 {[%emt 0:00:02]} g5 {[%emt 0:00:05] An even fight not without its subleties.  Weighted Error Value: White=0.01 (flawless) /Black=0.00 (flawless)} 1/2-1/2

[Event "Chinese League Div-A Rapid 2022"]
[Site "Fuling,Chongqing"]
[Date "2022.09.07"]
[Round "2.24"]
[White "Ren, Xiaoyi"]
[Black "Song, Yuxin"]
[Result "1/2-1/2"]
[ECO "B14"]
[WhiteElo "2250"]
[BlackElo "2317"]
[Annotator "TA"]
[PlyCount "29"]
[EventDate "2022.09.07"]
[EventType "team-tourn"]
[EventCountry "CHN"]
[SourceTitle "playchess.com"]
[Source "ChessBase"]
[SourceQuality "1"]
[TimeControl "1500+10"]

{[%evp 22,29,12,0,0,-14,-15,0,31,-25]} 1. d4 {[%emt 0:00:02]} Nf6 {[%emt 0:00:01]} 2. c4 {[%emt 0:00:03]} e6 {[%emt 0:00:01]} 3. Nf3 {[%emt 0:00:11]} d5 {[%emt 0:00:01]} 4. Bg5 {[%emt 0:00:02]} dxc4 {[%emt 0:00:12]} 5. e3 {[%emt 0:00:38]} c5 {[%emt 0:02:21]} 6. Bxc4 {[%emt 0:00:13]} cxd4 {[%emt 0:00:41]} 7. exd4 {[%emt 0:01:14]} Nc6 {[%emt 0:00:17]} 8. O-O {[%emt 0:00:13]} Be7 {[%emt 0:00:06]} 9. Nc3 {[%emt 0:00:27]} O-O {[%emt 0:00:07]} 10. Rc1 {[%emt 0:01:35]} h6 {[%emt 0:02:08]} 11. Bh4 {[%emt 0:01:12]} a6 {[%emt 0:04:18]} 12. a3 {[%emt 0:00:56]} b5 {[%emt 0:01:31] B14: Caro-Kann: Panov-Botvinnik Attack with 5...e6 and 5...g6.} 13. Ba2 {[%emt 0:00:05]} Bb7 {[%emt 0:00:07]} 14. Bb1 {[%emt 0:00:12]} b4 {[%emt 0:01:36] [#]} 15. Ne4 $146 {[%emt 0:01:49] Not much happened in this game.  Weighted Error Value: White=0.09 (flawless) /Black=0.10 (very precise)} ({White should play} 15. Qd3 $14 g6 16. Na4) ({Predecessor:} 15. Na4 g5 16. Bg3 Rc8 17. Qd3 bxa3 18. bxa3 Na5 19. Rxc8 Qxc8 20. Nc5 Bxc5 21. dxc5 {1-0 (40) Pavlidou,E (2188)-Nikolova,A (2328) Bansko 2010}) 1/2-1/2

[Event "Chinese League Div-A Rapid 2022"]
[Site "Fuling,Chongqing"]
[Date "2022.09.07"]
[Round "2.25"]
[White "Chu, Ruotong"]
[Black "Li, Xueyi"]
[Result "1/2-1/2"]
[ECO "D10"]
[WhiteElo "2185"]
[BlackElo "2280"]
[Annotator "RC"]
[PlyCount "58"]
[EventDate "2022.09.07"]
[EventType "team-tourn"]
[EventCountry "CHN"]
[SourceTitle "playchess.com"]
[Source "ChessBase"]
[SourceQuality "1"]
[TimeControl "1500+10"]

1. d4 {[%emt 0:00:05]} d5 {[%emt 0:00:05]} 2. c4 {[%emt 0:00:02]} c6 {[%emt 0:00:02]} 3. cxd5 {[%emt 0:01:32]} cxd5 {[%emt 0:00:02]} 4. Bf4 {[%emt 0:00:03]} Nf6 {[%emt 0:01:01]} 5. e3 {[%emt 0:00:12]} Nc6 {[%emt 0:00:44]} 6. Bd3 {[%emt 0:02:06]} Bg4 {[%emt 0:02:36]} 7. Ne2 {[%emt 0:00:57]} e6 {[%emt 0:00:14]} 8. Nbc3 {[%emt 0:00:07]} Bd6 {[%emt 0:02:28]} 9. Bxd6 {[%emt 0:01:04]} Qxd6 {[%emt 0:00:03]} 10. O-O {[%emt 0:01:41]} O-O {[%emt 0:00:05]} 11. h3 {[%emt 0:02:44]} Bh5 {[%emt 0:02:25]} 12. Qb3 {[%emt 0:00:02]} Qb4 {[%emt 0:00:08]} 13. Qxb4 {[%emt 0:02:36]} Nxb4 {[%emt 0:00:03]} 14. Nf4 {[%emt 0:00:32]} Nxd3 {[%emt 0:00:03]} 15. Nxd3 {[%emt 0:00:05]} Rac8 {[%emt 0:00:02]} 16. Nf4 {[%emt 0:01:01]} Bg6 {[%emt 0:00:06]} 17. Nxg6 {[%emt 0:00:32]} hxg6 {[%emt 0:00:03]} 18. Rac1 {[%emt 0:00:10]} g5 {[%emt 0:01:06]} 19. Ne2 {[%emt 0:01:00]} Ne4 {[%emt 0:00:20]} 20. Rxc8 {[%emt 0:00:32]} Rxc8 {[%emt 0:00:02]} 21. Rc1 {[%emt 0:00:02]} Rxc1+ {[%emt 0:00:03]} 22. Nxc1 {[%emt 0:00:01]} Kf8 {[%emt 0:00:01]} 23. Kf1 {[%emt 0:00:11]} Ke7 {[%emt 0:00:02]} 24. Ke2 {[%emt 0:00:07]} Nd6 {[%emt 0:00:04]} 25. Nd3 {[%emt 0:00:04]} Kd7 {[%emt 0:00:02]} 26. Kd2 {[%emt 0:00:09]} Ne4+ {[%emt 0:00:12]} 27. Ke2 {[%emt 0:00:07]} Nd6 {[%emt 0:00:02]} 28. Kd2 {[%emt 0:00:04]} Nc4+ {[%emt 0:00:03]} 29. Ke2 {[%emt 0:00:04]} Nd6 {[%emt 0:00:25]} 1/2-1/2